Workbook

Sheet STUDY DETAILS
A1: CLINICAL TRIALS UNIT (CTU) SERVICES ORDER FORM
A2: Instructions: To request CTU services, please complete this order form and upload along with your application in OnCore - Protocols Tab>PC Console>Documents/Info>Attachments>Updated>Add
A3: For assistance, contact ctu@sc-ctsi.org or 323-865-3056.
A5: Submission Date:
A6: OnCore Protocol Number:
A7: IRB Number (if available):
A8: PI Name (Last, First):
A9: PI Department:
A10: Study Type:
A11: Lab Only (Y/N):
A12: Arm/Segment/Cohort Name:
A13: Is this an amendment after study activation by CTO:
A14: Protocol Version Date:
A15: Laboratory Manual Version Date:
A18: Study Team Comments/Notes:

Sheet CTU ORDER FORM
D1: PLEASE LIST THE SERVICES NEEDED PER VISIT FOR EACH PATIENT FOR YOUR STUDY | Z1: hold
A2: =MATCH("hold",1:1,0) -> 26
A3: =SUBSTITUTE(ADDRESS(1,A2,4),1,"")&":"&SUBSTITUTE(ADDRESS(1,A2,4),1,"") -> Z:Z | B3: =SUBSTITUTE(ADDRESS(1,A2-2,4),1,"")&":"&SUBSTITUTE(ADDRESS(1,A2-1,4),1,"") -> X:Y | D3: VISIT NAME? | F3: VISIT NAME? | H3: VISIT NAME? | J3: VISIT NAME? | L3: VISIT NAME? | N3: VISIT NAME? | P3: VISIT NAME? | R3: VISIT NAME? | T3: VISIT NAME? | V3: VISIT NAME? | X3: VISIT NAME? | AA3: TOTAL COST PER SERVICE
A4: A. COMMON CLINICAL PROCEDURES | C4: PRICE | D4: Qty/Freq | E4: Total | F4: Qty/Freq | G4: Total | H4: Qty/Freq | I4: Total | J4: Qty/Freq | K4: Total | L4: Qty/Freq | M4: Total | N4: Qty/Freq | O4: Total | P4: Qty/Freq | Q4: Total | R4: Qty/Freq | S4: Total | T4: Qty/Freq | U4: Total | V4: Qty/Freq | W4: Total | X4: Qty/Freq | Y4: Total
A5: CTU-101 | B5: Vital signs | C5: 6 | E5: =$C$5*D5 -> 0 | G5: =$C$5*F5 -> 0 | I5: =$C$5*H5 -> 0 | K5: =$C$5*J5 -> 0 | M5: =$C$5*L5 -> 0 | O5: =$C$5*N5 -> 0 | Q5: =$C$5*P5 -> 0 | S5: =$C$5*R5 -> 0 | U5: =$C$5*T5 -> 0 | W5: =$C$5*V5 -> 0 | Y5: =$C$5*X5 -> 0 | AA5: =SUMPRODUCT(D5:Z5*MOD(COLUMN(D5:Z5)-COLUMN(E5)+1,2)) -> 0
A6: CTU-102 | B6: Height/Weight/BSA | C6: 6 | E6: =$C$6*D6 -> 0 | G6: =$C$6*F6 -> 0 | I6: =$C$6*H6 -> 0 | K6: =$C$6*J6 -> 0 | M6: =$C$6*L6 -> 0 | O6: =$C$6*N6 -> 0 | Q6: =$C$6*P6 -> 0 | S6: =$C$6*R6 -> 0 | U6: =$C$6*T6 -> 0 | W6: =$C$6*V6 -> 0 | Y6: =$C$6*X6 -> 0 | AA6: =SUMPRODUCT(D6:Z6*MOD(COLUMN(D6:Z6)-COLUMN(E6)+1,2)) -> 0
A7: CTU-103 | B7: Direct Venipuncture | C7: 12 | E7: =$C$7*D7 -> 0 | G7: =$C$7*F7 -> 0 | I7: =$C$7*H7 -> 0 | K7: =$C$7*J7 -> 0 | M7: =$C$7*L7 -> 0 | O7: =$C$7*N7 -> 0 | Q7: =$C$7*P7 -> 0 | S7: =$C$7*R7 -> 0 | U7: =$C$7*T7 -> 0 | W7: =$C$7*V7 -> 0 | Y7: =$C$7*X7 -> 0 | AA7: 0
A8: CTU-104 | B8: Blood Draw by Intravenous (IV): First draw, includes IV placement time and initial tube | C8: 36 | E8: =$C$8*D8 -> 0 | G8: =$C$8*F8 -> 0 | I8: =$C$8*H8 -> 0 | K8: =$C$8*J8 -> 0 | M8: =$C$8*L8 -> 0 | O8: =$C$8*N8 -> 0 | Q8: =$C$8*P8 -> 0 | S8: =$C$8*R8 -> 0 | U8: =$C$8*T8 -> 0 | W8: =$C$8*V8 -> 0 | Y8: =$C$8*X8 -> 0 | AA8: 0
A9: CTU-105 | B9: Blood Draw by Intravenous (IV): Additional tubes | C9: 6 | E9: =$C$9*D9 -> 0 | G9: =$C$9*F9 -> 0 | I9: =$C$9*H9 -> 0 | K9: =$C$9*J9 -> 0 | M9: =$C$9*L9 -> 0 | O9: =$C$9*N9 -> 0 | Q9: =$C$9*P9 -> 0 | S9: =$C$9*R9 -> 0 | U9: =$C$9*T9 -> 0 | W9: =$C$9*V9 -> 0 | Y9: =$C$9*X9 -> 0 | AA9: 0
A10: CTU-106 | B10: Blood glucose - finger stick | C10: 12 | E10: =$C$10*D10 -> 0 | G10: =$C$10*F10 -> 0 | I10: =$C$10*H10 -> 0 | K10: =$C$10*J10 -> 0 | M10: =$C$10*L10 -> 0 | O10: =$C$10*N10 -> 0 | Q10: =$C$10*P10 -> 0 | S10: =$C$10*R10 -> 0 | U10: =$C$10*T10 -> 0 | W10: =$C$10*V10 -> 0 | Y10: =$C$10*X10 -> 0 | AA10: 0
A11: CTU-107 | B11: Urine pregnancy | C11: 24 | E11: =$C$11*D11 -> 0 | G11: =$C$11*F11 -> 0 | I11: =$C$11*H11 -> 0 | K11: =$C$11*J11 -> 0 | M11: =$C$11*L11 -> 0 | O11: =$C$11*N11 -> 0 | Q11: =$C$11*P11 -> 0 | S11: =$C$11*R11 -> 0 | U11: =$C$11*T11 -> 0 | W11: =$C$11*V11 -> 0 | Y11: =$C$11*X11 -> 0 | AA11: 0
A12: CTU-108 | B12: Body fluid collections (urine, stool or sputum) | C12: 12 | E12: =$C$12*D12 -> 0 | G12: =$C$12*F12 -> 0 | I12: =$C$12*H12 -> 0 | K12: =$C$12*J12 -> 0 | M12: =$C$12*L12 -> 0 | O12: =$C$12*N12 -> 0 | Q12: =$C$12*P12 -> 0 | S12: =$C$12*R12 -> 0 | U12: =$C$12*T12 -> 0 | W12: =$C$12*V12 -> 0 | Y12: =$C$12*X12 -> 0 | AA12: 0
A13: B. IND/INP/MEDICATION ADMINISTRATION
A14: CTU-201 | B14: Oral or Topical | C14: 12 | E14: =$C$14*D14 -> 0 | G14: =$C$14*F14 -> 0 | I14: =$C$14*H14 -> 0 | K14: =$C$14*J14 -> 0 | M14: =$C$14*L14 -> 0 | O14: =$C$14*N14 -> 0 | Q14: =$C$14*P14 -> 0 | S14: =$C$14*R14 -> 0 | U14: =$C$14*T14 -> 0 | W14: =$C$14*V14 -> 0 | Y14: =$C$14*X14 -> 0 | AA14: =SUMPRODUCT(D14:Z14*MOD(COLUMN(D14:Z14)-COLUMN(E14)+1,2)) -> 0
A15: CTU-202 | B15: Intramuscular (IM) or Subcutaneous (SubQ) Injection | C15: 80 | E15: =$C$15*D15 -> 0 | G15: =$C$15*F15 -> 0 | I15: =$C$15*H15 -> 0 | K15: =$C$15*J15 -> 0 | M15: =$C$15*L15 -> 0 | O15: =$C$15*N15 -> 0 | Q15: =$C$15*P15 -> 0 | S15: =$C$15*R15 -> 0 | U15: =$C$15*T15 -> 0 | W15: =$C$15*V15 -> 0 | Y15: =$C$15*X15 -> 0 | AA15: =SUMPRODUCT(D15:Z15*MOD(COLUMN(D15:Z15)-COLUMN(E15)+1,2)) -> 0
A16: CTU-203 | B16: Intravenous (IV) Infusion - Includes IV access, initial set up, drug verification, & initial 60 Min infusion | C16: 230 | E16: =$C$16*D16 -> 0 | G16: =$C$16*F16 -> 0 | I16: =$C$16*H16 -> 0 | K16: =$C$16*J16 -> 0 | M16: =$C$16*L16 -> 0 | O16: =$C$16*N16 -> 0 | Q16: =$C$16*P16 -> 0 | S16: =$C$16*R16 -> 0 | U16: =$C$16*T16 -> 0 | W16: =$C$16*V16 -> 0 | Y16: =$C$16*X16 -> 0 | AA16: =SUMPRODUCT(D16:Z16*MOD(COLUMN(D16:Z16)-COLUMN(E16)+1,2)) -> 0
A17: CTU-204 | B17: Intravenous (IV) Infusion - Additional Infusion Time Needed (30 Min Increments) | C17: 58 | E17: =IFERROR(VLOOKUP(D17,'DATA-DO NOT DELETE'!$C$3:$I$22,7,0),0) -> 0 | G17: =IFERROR(VLOOKUP(F17,'DATA-DO NOT DELETE'!$C$3:$I$22,7,0),0) -> 0 | I17: =IFERROR(VLOOKUP(H17,'DATA-DO NOT DELETE'!$C$3:$I$22,7,0),0) -> 0 | K17: =IFERROR(VLOOKUP(J17,'DATA-DO NOT DELETE'!$C$3:$I$22,7,0),0) -> 0 | M17: =IFERROR(VLOOKUP(L17,'DATA-DO NOT DELETE'!$C$3:$I$22,7,0),0) -> 0 | O17: =IFERROR(VLOOKUP(N17,'DATA-DO NOT DELETE'!$C$3:$I$22,7,0),0) -> 0 | Q17: =IFERROR(VLOOKUP(P17,'DATA-DO NOT DELETE'!$C$3:$I$22,7,0),0) -> 0 | S17: =IFERROR(VLOOKUP(R17,'DATA-DO NOT DELETE'!$C$3:$I$22,7,0),0) -> 0 | U17: =IFERROR(VLOOKUP(T17,'DATA-DO NOT DELETE'!$C$3:$I$22,7,0),0) -> 0 | W17: =IFERROR(VLOOKUP(V17,'DATA-DO NOT DELETE'!$C$3:$I$22,7,0),0) -> 0 | Y17: =IFERROR(VLOOKUP(X17,'DATA-DO NOT DELETE'!$C$3:$I$22,7,0),0) -> 0 | AA17: =SUMPRODUCT(D17:Z17*MOD(COLUMN(D17:Z17)-COLUMN(E17)+1,2)) -> 0
A18: C, HYDRATION
A19: CTU-301 | B19: Pre-Chemotherapy Hydration - Initial 60 Min | C19: 144 | E19: =$C$19*D19 -> 0 | G19: =$C$19*F19 -> 0 | I19: =$C$19*H19 -> 0 | K19: =$C$19*J19 -> 0 | M19: =$C$19*L19 -> 0 | O19: =$C$19*N19 -> 0 | Q19: =$C$19*P19 -> 0 | S19: =$C$19*R19 -> 0 | U19: =$C$19*T19 -> 0 | W19: =$C$19*V19 -> 0 | Y19: =$C$19*X19 -> 0 | AA19: =SUMPRODUCT(D19:Z19*MOD(COLUMN(D19:Z19)-COLUMN(E19)+1,2)) -> 0
A20: CTU-302 | B20: Pre-Chemotherapy Hydration - Each Additional 30 Min | C20: 36 | E20: =IFERROR(VLOOKUP(D20,'DATA-DO NOT DELETE'!$C$3:$E$22,3,0),0) -> 0 | G20: =IFERROR(VLOOKUP(F20,'DATA-DO NOT DELETE'!$C$3:$E$22,3,0),0) -> 0 | I20: =IFERROR(VLOOKUP(H20,'DATA-DO NOT DELETE'!$C$3:$E$22,3,0),0) -> 0 | K20: =IFERROR(VLOOKUP(J20,'DATA-DO NOT DELETE'!$C$3:$E$22,3,0),0) -> 0 | M20: =IFERROR(VLOOKUP(L20,'DATA-DO NOT DELETE'!$C$3:$E$22,3,0),0) -> 0 | O20: =IFERROR(VLOOKUP(N20,'DATA-DO NOT DELETE'!$C$3:$E$22,3,0),0) -> 0 | Q20: =IFERROR(VLOOKUP(P20,'DATA-DO NOT DELETE'!$C$3:$E$22,3,0),0) -> 0 | S20: =IFERROR(VLOOKUP(R20,'DATA-DO NOT DELETE'!$C$3:$E$22,3,0),0) -> 0 | U20: =IFERROR(VLOOKUP(T20,'DATA-DO NOT DELETE'!$C$3:$E$22,3,0),0) -> 0 | W20: =IFERROR(VLOOKUP(V20,'DATA-DO NOT DELETE'!$C$3:$E$22,3,0),0) -> 0 | Y20: =IFERROR(VLOOKUP(X20,'DATA-DO NOT DELETE'!$C$3:$E$22,3,0),0) -> 0 | AA20: =SUMPRODUCT(D20:Z20*MOD(COLUMN(D20:Z20)-COLUMN(E20)+1,2)) -> 0
A21: CTU-303 | B21: Post-Chemotherapy Hydration - Initial 60 Min | C21: 144 | E21: =$C$21*D21 -> 0 | G21: =$C$21*F21 -> 0 | I21: =$C$21*H21 -> 0 | K21: =$C$21*J21 -> 0 | M21: =$C$21*L21 -> 0 | O21: =$C$21*N21 -> 0 | Q21: =$C$21*P21 -> 0 | S21: =$C$21*R21 -> 0 | U21: =$C$21*T21 -> 0 | W21: =$C$21*V21 -> 0 | Y21: =$C$21*X21 -> 0 | AA21: =SUMPRODUCT(D21:Z21*MOD(COLUMN(D21:Z21)-COLUMN(E21)+1,2)) -> 0
A22: CTU-304 | B22: Post-Chemotherapy Hydration - Each Additional 30 Min | C22: 36 | E22: =IFERROR(VLOOKUP(D22,'DATA-DO NOT DELETE'!$C$3:$E$22,3,0),0) -> 0 | G22: =IFERROR(VLOOKUP(F22,'DATA-DO NOT DELETE'!$C$3:$E$22,3,0),0) -> 0 | I22: =IFERROR(VLOOKUP(H22,'DATA-DO NOT DELETE'!$C$3:$E$22,3,0),0) -> 0 | K22: =IFERROR(VLOOKUP(J22,'DATA-DO NOT DELETE'!$C$3:$E$22,3,0),0) -> 0 | M22: =IFERROR(VLOOKUP(L22,'DATA-DO NOT DELETE'!$C$3:$E$22,3,0),0) -> 0 | O22: =IFERROR(VLOOKUP(N22,'DATA-DO NOT DELETE'!$C$3:$E$22,3,0),0) -> 0 | Q22: =IFERROR(VLOOKUP(P22,'DATA-DO NOT DELETE'!$C$3:$E$22,3,0),0) -> 0 | S22: =IFERROR(VLOOKUP(R22,'DATA-DO NOT DELETE'!$C$3:$E$22,3,0),0) -> 0 | U22: =IFERROR(VLOOKUP(T22,'DATA-DO NOT DELETE'!$C$3:$E$22,3,0),0) -> 0 | W22: =IFERROR(VLOOKUP(V22,'DATA-DO NOT DELETE'!$C$3:$E$22,3,0),0) -> 0 | Y22: =IFERROR(VLOOKUP(X22,'DATA-DO NOT DELETE'!$C$3:$E$22,3,0),0) -> 0 | AA22: =SUMPRODUCT(D22:Z22*MOD(COLUMN(D22:Z22)-COLUMN(E22)+1,2)) -> 0
A23: D, OBSERVATION/EDUCATION (NO BLOOD DRAW)
A24: CTU-401 | B24: Patient Observation, Education and Training (30 Min Increments) | C24: 54 | E24: =IFERROR(VLOOKUP(D24,'DATA-DO NOT DELETE'!$C$3:$G$22,5,0),0) -> 0 | G24: =IFERROR(VLOOKUP(F24,'DATA-DO NOT DELETE'!$C$3:$G$22,5,0),0) -> 0 | I24: =IFERROR(VLOOKUP(H24,'DATA-DO NOT DELETE'!$C$3:$G$22,5,0),0) -> 0 | K24: =IFERROR(VLOOKUP(J24,'DATA-DO NOT DELETE'!$C$3:$G$22,5,0),0) -> 0 | M24: =IFERROR(VLOOKUP(L24,'DATA-DO NOT DELETE'!$C$3:$G$22,5,0),0) -> 0 | O24: =IFERROR(VLOOKUP(N24,'DATA-DO NOT DELETE'!$C$3:$G$22,5,0),0) -> 0 | Q24: =IFERROR(VLOOKUP(P24,'DATA-DO NOT DELETE'!$C$3:$G$22,5,0),0) -> 0 | S24: =IFERROR(VLOOKUP(R24,'DATA-DO NOT DELETE'!$C$3:$G$22,5,0),0) -> 0 | U24: =IFERROR(VLOOKUP(T24,'DATA-DO NOT DELETE'!$C$3:$G$22,5,0),0) -> 0 | W24: =IFERROR(VLOOKUP(V24,'DATA-DO NOT DELETE'!$C$3:$G$22,5,0),0) -> 0 | Y24: =IFERROR(VLOOKUP(X24,'DATA-DO NOT DELETE'!$C$3:$G$22,5,0),0) -> 0 | AA24: =SUMPRODUCT(D24:Z24*MOD(COLUMN(D24:Z24)-COLUMN(E24)+1,2)) -> 0
A25: E. EKG & CARDIAC MONITORING
A26: CTU-501 | B26: Single EKG (12 lead): No interpretation | C26: 91.68 | E26: =$C$26*D26 -> 0 | G26: =$C$26*F26 -> 0 | I26: =$C$26*H26 -> 0 | K26: =$C$26*J26 -> 0 | M26: =$C$26*L26 -> 0 | O26: =$C$26*N26 -> 0 | Q26: =$C$26*P26 -> 0 | S26: =$C$26*R26 -> 0 | U26: =$C$26*T26 -> 0 | W26: =$C$26*V26 -> 0 | Y26: =$C$26*X26 -> 0 | AA26: =SUMPRODUCT(D26:Z26*MOD(COLUMN(D26:Z26)-COLUMN(E26)+1,2)) -> 0
A27: CTU-502 | B27: Triplicate EKG (12 lead): Set of three EKGs, No interpretation | C27: 275.04 | E27: =$C$27*D27 -> 0 | G27: =$C$27*F27 -> 0 | I27: =$C$27*H27 -> 0 | K27: =$C$27*J27 -> 0 | M27: =$C$27*L27 -> 0 | O27: =$C$27*N27 -> 0 | Q27: =$C$27*P27 -> 0 | S27: =$C$27*R27 -> 0 | U27: =$C$27*T27 -> 0 | W27: =$C$27*V27 -> 0 | Y27: =$C$27*X27 -> 0 | AA27: =SUMPRODUCT(D27:Z27*MOD(COLUMN(D27:Z27)-COLUMN(E27)+1,2)) -> 0
A28: CTU-503 | B28: Cardiac Monitoring, No interpretation | C28: 144 | E28: =$C$28*D28 -> 0 | G28: =$C$28*F28 -> 0 | I28: =$C$28*H28 -> 0 | K28: =$C$28*J28 -> 0 | M28: =$C$28*L28 -> 0 | O28: =$C$28*N28 -> 0 | Q28: =$C$28*P28 -> 0 | S28: =$C$28*R28 -> 0 | U28: =$C$28*T28 -> 0 | W28: =$C$28*V28 -> 0 | Y28: =$C$28*X28 -> 0 | AA28: =SUMPRODUCT(D28:Z28*MOD(COLUMN(D28:Z28)-COLUMN(E28)+1,2)) -> 0
A29: CTU-504 | B29: Holter Monitor (hook up, recording and disconnection) | C29: 72 | E29: =$C$29*D29 -> 0 | G29: =$C$29*F29 -> 0 | I29: =$C$29*H29 -> 0 | K29: =$C$29*J29 -> 0 | M29: =$C$29*L29 -> 0 | O29: =$C$29*N29 -> 0 | Q29: =$C$29*P29 -> 0 | S29: =$C$29*R29 -> 0 | U29: =$C$29*T29 -> 0 | W29: =$C$29*V29 -> 0 | Y29: =$C$29*X29 -> 0 | AA29: =SUMPRODUCT(D29:Z29*MOD(COLUMN(D29:Z29)-COLUMN(E29)+1,2)) -> 0
A30: F. CTU BODY COMPOSITION SERVICES
A31: CTU-601 | B31: DEXA whole body composition, hip, & spine (combined) | C31: 190 | E31: =$C$31*D31 -> 0 | G31: =$C$31*F31 -> 0 | I31: =$C$31*H31 -> 0 | K31: =$C$31*J31 -> 0 | M31: =$C$31*L31 -> 0 | O31: =$C$31*N31 -> 0 | Q31: =$C$31*P31 -> 0 | S31: =$C$31*R31 -> 0 | U31: =$C$31*T31 -> 0 | W31: =$C$31*V31 -> 0 | Y31: =$C$31*X31 -> 0 | AA31: =SUMPRODUCT(D31:Z31*MOD(COLUMN(D31:Z31)-COLUMN(E31)+1,2)) -> 0
A32: CTU-602 | B32: DEXA whole body (composition) | C32: 150 | E32: =$C$32*D32 -> 0 | G32: =$C$32*F32 -> 0 | I32: =$C$32*H32 -> 0 | K32: =$C$32*J32 -> 0 | M32: =$C$32*L32 -> 0 | O32: =$C$32*N32 -> 0 | Q32: =$C$32*P32 -> 0 | S32: =$C$32*R32 -> 0 | U32: =$C$32*T32 -> 0 | W32: =$C$32*V32 -> 0 | Y32: =$C$32*X32 -> 0 | AA32: 0
A33: CTU-603 | B33: DEXA bone density (spine) | C33: 75 | E33: =$C$33*D33 -> 0 | G33: =$C$33*F33 -> 0 | I33: =$C$33*H33 -> 0 | K33: =$C$33*J33 -> 0 | M33: =$C$33*L33 -> 0 | O33: =$C$33*N33 -> 0 | Q33: =$C$33*P33 -> 0 | S33: =$C$33*R33 -> 0 | U33: =$C$33*T33 -> 0 | W33: =$C$33*V33 -> 0 | Y33: =$C$33*X33 -> 0 | AA33: 0
A34: CTU-604 | B34: DEXA bone density (hip) | C34: 75 | E34: =$C$34*D34 -> 0 | G34: =$C$34*F34 -> 0 | I34: =$C$34*H34 -> 0 | K34: =$C$34*J34 -> 0 | M34: =$C$34*L34 -> 0 | O34: =$C$34*N34 -> 0 | Q34: =$C$34*P34 -> 0 | S34: =$C$34*R34 -> 0 | U34: =$C$34*T34 -> 0 | W34: =$C$34*V34 -> 0 | Y34: =$C$34*X34 -> 0 | AA34: 0
A35: CTU-605 | B35: DEXA Data Processing | C35: 40 | E35: =$C$35*D35 -> 0 | G35: =$C$35*F35 -> 0 | I35: =$C$35*H35 -> 0 | K35: =$C$35*J35 -> 0 | M35: =$C$35*L35 -> 0 | O35: =$C$35*N35 -> 0 | Q35: =$C$35*P35 -> 0 | S35: =$C$35*R35 -> 0 | U35: =$C$35*T35 -> 0 | W35: =$C$35*V35 -> 0 | Y35: =$C$35*X35 -> 0 | AA35: 0
A36: CTU-606 | B36: DEXA Phantom scan for multisite study | C36: 40 | E36: =$C$36*D36 -> 0 | G36: =$C$36*F36 -> 0 | I36: =$C$36*H36 -> 0 | K36: =$C$36*J36 -> 0 | M36: =$C$36*L36 -> 0 | O36: =$C$36*N36 -> 0 | Q36: =$C$36*P36 -> 0 | S36: =$C$36*R36 -> 0 | U36: =$C$36*T36 -> 0 | W36: =$C$36*V36 -> 0 | Y36: =$C$36*X36 -> 0 | AA36: 0
A37: CTU-606 | B37: Waist-hip circumference | C37: 12 | E37: =$C$37*D37 -> 0 | G37: =$C$37*F37 -> 0 | I37: =$C$37*H37 -> 0 | K37: =$C$37*J37 -> 0 | M37: =$C$37*L37 -> 0 | O37: =$C$37*N37 -> 0 | Q37: =$C$37*P37 -> 0 | S37: =$C$37*R37 -> 0 | U37: =$C$37*T37 -> 0 | W37: =$C$37*V37 -> 0 | Y37: =$C$37*X37 -> 0 | AA37: 0
A38: CTU-608 | B38: Skinfold measurement (per site) | C38: 20 | E38: =$C$38*D38 -> 0 | G38: =$C$38*F38 -> 0 | I38: =$C$38*H38 -> 0 | K38: =$C$38*J38 -> 0 | M38: =$C$38*L38 -> 0 | O38: =$C$38*N38 -> 0 | Q38: =$C$38*P38 -> 0 | S38: =$C$38*R38 -> 0 | U38: =$C$38*T38 -> 0 | W38: =$C$38*V38 -> 0 | Y38: =$C$38*X38 -> 0 | AA38: 0
A39: CTU-609 | B39: Other: Please contact CTU | E39: =$C$39*D39 -> 0 | G39: =$C$39*F39 -> 0 | I39: =$C$39*H39 -> 0 | K39: =$C$39*J39 -> 0 | M39: =$C$39*L39 -> 0 | O39: =$C$39*N39 -> 0 | Q39: =$C$39*P39 -> 0 | S39: =$C$39*R39 -> 0 | U39: =$C$39*T39 -> 0 | W39: =$C$39*V39 -> 0 | Y39: =$C$39*X39 -> 0 | AA39: 0
A40: G. SAMPLE PROCESSING - TO BE COMPLETED BY CTU TEAM
A41: CTU-701 | B41: Processing: Blood, charge includes 3 aliquots/transfer tubes | C41: 15 | E41: =$C$41*D41 -> 0 | G41: =$C$41*F41 -> 0 | I41: =$C$41*H41 -> 0 | K41: =$C$41*J41 -> 0 | M41: =$C$41*L41 -> 0 | O41: =$C$41*N41 -> 0 | Q41: =$C$41*P41 -> 0 | S41: =$C$41*R41 -> 0 | U41: =$C$41*T41 -> 0 | W41: =$C$41*V41 -> 0 | Y41: =$C$41*X41 -> 0 | AA41: =SUMPRODUCT(D41:Z41*MOD(COLUMN(D41:Z41)-COLUMN(E41)+1,2)) -> 0
A42: CTU-702 | B42: Additional Aliquots/transfer tubes needed | C42: 1 | E42: =$C$42*D42 -> 0 | G42: =$C$42*F42 -> 0 | I42: =$C$42*H42 -> 0 | K42: =$C$42*J42 -> 0 | M42: =$C$42*L42 -> 0 | O42: =$C$42*N42 -> 0 | Q42: =$C$42*P42 -> 0 | S42: =$C$42*R42 -> 0 | U42: =$C$42*T42 -> 0 | W42: =$C$42*V42 -> 0 | Y42: =$C$42*X42 -> 0 | AA42: 0
A43: CTU-703 | B43: Additional additives needed | C43: 1 | E43: =$C$43*D43 -> 0 | G43: =$C$43*F43 -> 0 | I43: =$C$43*H43 -> 0 | K43: =$C$43*J43 -> 0 | M43: =$C$43*L43 -> 0 | O43: =$C$43*N43 -> 0 | Q43: =$C$43*P43 -> 0 | S43: =$C$43*R43 -> 0 | U43: =$C$43*T43 -> 0 | W43: =$C$43*V43 -> 0 | Y43: =$C$43*X43 -> 0 | AA43: 0
A44: CTU-704 | B44: Extra centrifugation step | C44: 6 | E44: =$C$44*D44 -> 0 | G44: =$C$44*F44 -> 0 | I44: =$C$44*H44 -> 0 | K44: =$C$44*J44 -> 0 | M44: =$C$44*L44 -> 0 | O44: =$C$44*N44 -> 0 | Q44: =$C$44*P44 -> 0 | S44: =$C$44*R44 -> 0 | U44: =$C$44*T44 -> 0 | W44: =$C$44*V44 -> 0 | Y44: =$C$44*X44 -> 0 | AA44: 0
A45: CTU-705 | B45: Whole Blood without processing (no centrifugation) | C45: 10 | E45: =$C$45*D45 -> 0 | G45: =$C$45*F45 -> 0 | I45: =$C$45*H45 -> 0 | K45: =$C$45*J45 -> 0 | M45: =$C$45*L45 -> 0 | O45: =$C$45*N45 -> 0 | Q45: =$C$45*P45 -> 0 | S45: =$C$45*R45 -> 0 | U45: =$C$45*T45 -> 0 | W45: =$C$45*V45 -> 0 | Y45: =$C$45*X45 -> 0 | AA45: 0
A46: CTU-706 | B46: Processing: Urine or 24hr urine collection | C46: 15 | E46: =$C$46*D46 -> 0 | G46: =$C$46*F46 -> 0 | I46: =$C$46*H46 -> 0 | K46: =$C$46*J46 -> 0 | M46: =$C$46*L46 -> 0 | O46: =$C$46*N46 -> 0 | Q46: =$C$46*P46 -> 0 | S46: =$C$46*R46 -> 0 | U46: =$C$46*T46 -> 0 | W46: =$C$46*V46 -> 0 | Y46: =$C$46*X46 -> 0 | AA46: 0
A47: CTU-707 | B47: Processing: Hair follicle | C47: 15 | E47: =$C$47*D47 -> 0 | G47: =$C$47*F47 -> 0 | I47: =$C$47*H47 -> 0 | K47: =$C$47*J47 -> 0 | M47: =$C$47*L47 -> 0 | O47: =$C$47*N47 -> 0 | Q47: =$C$47*P47 -> 0 | S47: =$C$47*R47 -> 0 | U47: =$C$47*T47 -> 0 | W47: =$C$47*V47 -> 0 | Y47: =$C$47*X47 -> 0 | AA47: 0
A48: CTU-708 | B48: Processing: Stool | C48: 15 | E48: =$C$48*D48 -> 0 | G48: =$C$48*F48 -> 0 | I48: =$C$48*H48 -> 0 | K48: =$C$48*J48 -> 0 | M48: =$C$48*L48 -> 0 | O48: =$C$48*N48 -> 0 | Q48: =$C$48*P48 -> 0 | S48: =$C$48*R48 -> 0 | U48: =$C$48*T48 -> 0 | W48: =$C$48*V48 -> 0 | Y48: =$C$48*X48 -> 0 | AA48: 0
A49: CTU-709 | B49: Processing : Saliva | C49: 15 | E49: =$C$49*D49 -> 0 | G49: =$C$49*F49 -> 0 | I49: =$C$49*H49 -> 0 | K49: =$C$49*J49 -> 0 | M49: =$C$49*L49 -> 0 | O49: =$C$49*N49 -> 0 | Q49: =$C$49*P49 -> 0 | S49: =$C$49*R49 -> 0 | U49: =$C$49*T49 -> 0 | W49: =$C$49*V49 -> 0 | Y49: =$C$49*X49 -> 0 | AA49: 0
A50: CTU-710 | B50: Processing: Blood smear (slide x 2) | C50: 10 | E50: =$C$50*D50 -> 0 | G50: =$C$50*F50 -> 0 | I50: =$C$50*H50 -> 0 | K50: =$C$50*J50 -> 0 | M50: =$C$50*L50 -> 0 | O50: =$C$50*N50 -> 0 | Q50: =$C$50*P50 -> 0 | S50: =$C$50*R50 -> 0 | U50: =$C$50*T50 -> 0 | W50: =$C$50*V50 -> 0 | Y50: =$C$50*X50 -> 0 | AA50: 0
A51: CTU-711 | B51: Processing: Buffy Coat From Whole Blood | C51: 25 | E51: =$C$51*D51 -> 0 | G51: =$C$51*F51 -> 0 | I51: =$C$51*H51 -> 0 | K51: =$C$51*J51 -> 0 | M51: =$C$51*L51 -> 0 | O51: =$C$51*N51 -> 0 | Q51: =$C$51*P51 -> 0 | S51: =$C$51*R51 -> 0 | U51: =$C$51*T51 -> 0 | W51: =$C$51*V51 -> 0 | Y51: =$C$51*X51 -> 0 | AA51: 0
A52: CTU-712 | B52: Processing: WBC From Whole Blood | C52: 75 | E52: =$C$52*D52 -> 0 | G52: =$C$52*F52 -> 0 | I52: =$C$52*H52 -> 0 | K52: =$C$52*J52 -> 0 | M52: =$C$52*L52 -> 0 | O52: =$C$52*N52 -> 0 | Q52: =$C$52*P52 -> 0 | S52: =$C$52*R52 -> 0 | U52: =$C$52*T52 -> 0 | W52: =$C$52*V52 -> 0 | Y52: =$C$52*X52 -> 0 | AA52: 0
A53: CTU-713 | B53: Processing: Serum/plasma ultrafiltrate | C53: 20 | E53: =$C$53*D53 -> 0 | G53: =$C$53*F53 -> 0 | I53: =$C$53*H53 -> 0 | K53: =$C$53*J53 -> 0 | M53: =$C$53*L53 -> 0 | O53: =$C$53*N53 -> 0 | Q53: =$C$53*P53 -> 0 | S53: =$C$53*R53 -> 0 | U53: =$C$53*T53 -> 0 | W53: =$C$53*V53 -> 0 | Y53: =$C$53*X53 -> 0 | AA53: 0
A54: CTU-714 | B54: Processing: Quantiferon-Gold (3 tube set) | C54: 25 | E54: =$C$54*D54 -> 0 | G54: =$C$54*F54 -> 0 | I54: =$C$54*H54 -> 0 | K54: =$C$54*J54 -> 0 | M54: =$C$54*L54 -> 0 | O54: =$C$54*N54 -> 0 | Q54: =$C$54*P54 -> 0 | S54: =$C$54*R54 -> 0 | U54: =$C$54*T54 -> 0 | W54: =$C$54*V54 -> 0 | Y54: =$C$54*X54 -> 0 | AA54: 0
A55: CTU-715 | B55: Shipping & Handling - Total # of boxes per delivery location | C55: 15 | E55: =$C$55*D55 -> 0 | G55: =$C$55*F55 -> 0 | I55: =$C$55*H55 -> 0 | K55: =$C$55*J55 -> 0 | M55: =$C$55*L55 -> 0 | O55: =$C$55*N55 -> 0 | Q55: =$C$55*P55 -> 0 | S55: =$C$55*R55 -> 0 | U55: =$C$55*T55 -> 0 | W55: =$C$55*V55 -> 0 | Y55: =$C$55*X55 -> 0 | AA55: 0
A56: CTU-716 | B56: Processing: Sputum | C56: 25 | E56: =$C$56*D56 -> 0 | G56: =$C$56*F56 -> 0 | I56: =$C$56*H56 -> 0 | K56: =$C$56*J56 -> 0 | M56: =$C$56*L56 -> 0 | O56: =$C$56*N56 -> 0 | Q56: =$C$56*P56 -> 0 | S56: =$C$56*R56 -> 0 | U56: =$C$56*T56 -> 0 | W56: =$C$56*V56 -> 0 | Y56: =$C$56*X56 -> 0 | AA56: 0
A57: CTU-717 | B57: Other Processing: Please contact CTU | E57: =$C$57*D57 -> 0 | G57: =$C$57*F57 -> 0 | I57: =$C$57*H57 -> 0 | K57: =$C$57*J57 -> 0 | M57: =$C$57*L57 -> 0 | O57: =$C$57*N57 -> 0 | Q57: =$C$57*P57 -> 0 | S57: =$C$57*R57 -> 0 | U57: =$C$57*T57 -> 0 | W57: =$C$57*V57 -> 0 | Y57: =$C$57*X57 -> 0 | AA57: 0
A59: TOTAL CTU COST PER PARTICIPANT | E59: =SUM(E5:E12,E14:E17,E19:E22,E24:E24,E26:E29,E41:E57,E31:E39) -> 0 | G59: =SUM(G5:G12,G14:G17,G19:G22,G24:G24,G26:G29,G41:G57,G31:G39) -> 0 | I59: =SUM(I5:I12,I14:I17,I19:I22,I24:I24,I26:I29,I41:I57,I31:I39) -> 0 | K59: =SUM(K5:K12,K14:K17,K19:K22,K24:K24,K26:K29,K41:K57,K31:K39) -> 0 | M59: =SUM(M5:M12,M14:M17,M19:M22,M24:M24,M26:M29,M41:M57,M31:M39) -> 0 | O59: =SUM(O5:O12,O14:O17,O19:O22,O24:O24,O26:O29,O41:O57,O31:O39) -> 0 | Q59: =SUM(Q5:Q12,Q14:Q17,Q19:Q22,Q24:Q24,Q26:Q29,Q41:Q57,Q31:Q39) -> 0 | S59: =SUM(S5:S12,S14:S17,S19:S22,S24:S24,S26:S29,S41:S57,S31:S39) -> 0 | U59: =SUM(U5:U12,U14:U17,U19:U22,U24:U24,U26:U29,U41:U57,U31:U39) -> 0 | W59: =SUM(W5:W12,W14:W17,W19:W22,W24:W24,W26:W29,W41:W57,W31:W39) -> 0 | Y59: =SUM(Y5:Y12,Y14:Y17,Y19:Y22,Y24:Y24,Y26:Y29,Y41:Y57,Y31:Y39) -> 0 | AA59: =SUM(AA5:AA12,AA14:AA17,AA19:AA22,AA24:AA24,AA26:AA29,AA41:AA57,AA31:AA39) -> 0
A61: NORRIS HOSPITAL CHARGES - These are hospital charges billed to the study and paid directly to Norris Hospital
A62: CTU-NOR-101 | B62: CTU Norris E&M Outpatient | C62: 30 | D62: =IF(AND('STUDY DETAILS'!$C$11='DATA-DO NOT DELETE'!$L$8, E59>0), 0, 0)+IF(AND('STUDY DETAILS'!$C$11='DATA-DO NOT DELETE'!$L$9, E59>0), 1, 0) -> 0 | E62: =$C$62*D62 -> 0 | F62: =IF(AND('STUDY DETAILS'!$C$11='DATA-DO NOT DELETE'!$L$8, G59>0), 0, 0)+IF(AND('STUDY DETAILS'!$C$11='DATA-DO NOT DELETE'!$L$9, G59>0), 1, 0) -> 0 | G62: =$C$62*F62 -> 0 | H62: =IF(AND('STUDY DETAILS'!$C$11='DATA-DO NOT DELETE'!$L$8, I59>0), 0, 0)+IF(AND('STUDY DETAILS'!$C$11='DATA-DO NOT DELETE'!$L$9, I59>0), 1, 0) -> 0 | I62: =$C$62*H62 -> 0 | J62: =IF(AND('STUDY DETAILS'!$C$11='DATA-DO NOT DELETE'!$L$8, K59>0), 0, 0)+IF(AND('STUDY DETAILS'!$C$11='DATA-DO NOT DELETE'!$L$9, K59>0), 1, 0) -> 0 | K62: =$C$62*J62 -> 0 | L62: =IF(AND('STUDY DETAILS'!$C$11='DATA-DO NOT DELETE'!$L$8, M59>0), 0, 0)+IF(AND('STUDY DETAILS'!$C$11='DATA-DO NOT DELETE'!$L$9, M59>0), 1, 0) -> 0 | M62: =$C$62*L62 -> 0 | N62: =IF(AND('STUDY DETAILS'!$C$11='DATA-DO NOT DELETE'!$L$8, O59>0), 0, 0)+IF(AND('STUDY DETAILS'!$C$11='DATA-DO NOT DELETE'!$L$9, O59>0), 1, 0) -> 0 | O62: =$C$62*N62 -> 0 | P62: =IF(AND('STUDY DETAILS'!$C$11='DATA-DO NOT DELETE'!$L$8, Q59>0), 0, 0)+IF(AND('STUDY DETAILS'!$C$11='DATA-DO NOT DELETE'!$L$9, Q59>0), 1, 0) -> 0 | Q62: =$C$62*P62 -> 0 | R62: =IF(AND('STUDY DETAILS'!$C$11='DATA-DO NOT DELETE'!$L$8, S59>0), 0, 0)+IF(AND('STUDY DETAILS'!$C$11='DATA-DO NOT DELETE'!$L$9, S59>0), 1, 0) -> 0 | S62: =$C$62*R62 -> 0 | T62: =IF(AND('STUDY DETAILS'!$C$11='DATA-DO NOT DELETE'!$L$8, U59>0), 0, 0)+IF(AND('STUDY DETAILS'!$C$11='DATA-DO NOT DELETE'!$L$9, U59>0), 1, 0) -> 0 | U62: =$C$62*T62 -> 0 | V62: =IF(AND('STUDY DETAILS'!$C$11='DATA-DO NOT DELETE'!$L$8, W59>0), 0, 0)+IF(AND('STUDY DETAILS'!$C$11='DATA-DO NOT DELETE'!$L$9, W59>0), 1, 0) -> 0 | W62: =$C$62*V62 -> 0 | X62: =IF(AND('STUDY DETAILS'!$C$11='DATA-DO NOT DELETE'!$L$8, Y59>0), 0, 0)+IF(AND('STUDY DETAILS'!$C$11='DATA-DO NOT DELETE'!$L$9, Y59>0), 1, 0) -> 0 | Y62: =$C$62*X62 -> 0 | AA62: =SUMPRODUCT(D62:Z62*MOD(COLUMN(D62:Z62)-COLUMN(E62)+1,2)) -> 0
A63: CTU-NOR-102 | B63: CTU Norris Breakfast | C63: 10 | E63: =$C$63*D63 -> 0 | G63: =$C$63*F63 -> 0 | I63: =$C$63*H63 -> 0 | K63: =$C$63*J63 -> 0 | M63: =$C$63*L63 -> 0 | O63: =$C$63*N63 -> 0 | Q63: =$C$63*P63 -> 0 | S63: =$C$63*R63 -> 0 | U63: =$C$63*T63 -> 0 | W63: =$C$63*V63 -> 0 | Y63: =$C$63*X63 -> 0 | AA63: =SUMPRODUCT(D63:Z63*MOD(COLUMN(D63:Z63)-COLUMN(E63)+1,2)) -> 0
A64: CTU-NOR-103 | B64: CTU Norris Box Lunch | C64: 7.5 | E64: =$C$64*D64 -> 0 | G64: =$C$64*F64 -> 0 | I64: =$C$64*H64 -> 0 | K64: =$C$64*J64 -> 0 | M64: =$C$64*L64 -> 0 | O64: =$C$64*N64 -> 0 | Q64: =$C$64*P64 -> 0 | S64: =$C$64*R64 -> 0 | U64: =$C$64*T64 -> 0 | W64: =$C$64*V64 -> 0 | Y64: =$C$64*X64 -> 0 | AA64: =SUMPRODUCT(D64:Z64*MOD(COLUMN(D64:Z64)-COLUMN(E64)+1,2)) -> 0
A65: CTU-NOR-104 | B65: CTU Norris Dinner | C65: 15 | E65: =$C$66*D65 -> 0 | G65: =$C$66*F65 -> 0 | I65: =$C$66*H65 -> 0 | K65: =$C$66*J65 -> 0 | M65: =$C$66*L65 -> 0 | O65: =$C$66*N65 -> 0 | Q65: =$C$66*P65 -> 0 | S65: =$C$66*R65 -> 0 | U65: =$C$66*T65 -> 0 | W65: =$C$66*V65 -> 0 | Y65: =$C$66*X65 -> 0 | AA65: =SUMPRODUCT(D65:Z65*MOD(COLUMN(D65:Z65)-COLUMN(E65)+1,2)) -> 0
A66: CTU-NOR-105 | B66: CTU Norris Lunch | C66: 10 | E66: =$C$66*D66 -> 0 | G66: =$C$66*F66 -> 0 | I66: =$C$66*H66 -> 0 | K66: =$C$66*J66 -> 0 | M66: =$C$66*L66 -> 0 | O66: =$C$66*N66 -> 0 | Q66: =$C$66*P66 -> 0 | S66: =$C$66*R66 -> 0 | U66: =$C$66*T66 -> 0 | W66: =$C$66*V66 -> 0 | Y66: =$C$66*X66 -> 0 | AA66: =SUMPRODUCT(D66:Z66*MOD(COLUMN(D66:Z66)-COLUMN(E66)+1,2)) -> 0
A68: TOTAL NORRIS COST PER PARTICIPANT | E68: =SUM(E62:E66) -> 0 | G68: =SUM(G62:G66) -> 0 | I68: =SUM(I62:I66) -> 0 | K68: =SUM(K62:K66) -> 0 | M68: =SUM(M62:M66) -> 0 | O68: =SUM(O62:O66) -> 0 | Q68: =SUM(Q62:Q66) -> 0 | S68: =SUM(S62:S66) -> 0 | U68: =SUM(U62:U66) -> 0 | W68: =SUM(W62:W66) -> 0 | Y68: =SUM(Y62:Y66) -> 0 | AA68: =SUM(AA62:AA66) -> 0
A71: TOTAL CTU + NORRIS COST PER PARTICIPANT | E71: =E59+E68 -> 0 | G71: =G59+G68 -> 0 | I71: =I59+I68 -> 0 | K71: =K59+K68 -> 0 | M71: =M59+M68 -> 0 | O71: =O59+O68 -> 0 | Q71: =Q59+Q68 -> 0 | S71: =S59+S68 -> 0 | U71: =U59+U68 -> 0 | W71: =W59+W68 -> 0 | Y71: =Y59+Y68 -> 0 | AA71: =AA59+AA68 -> 0
B74: START UP-FEE | D74: =IF(AND('STUDY DETAILS'!C10='DATA-DO NOT DELETE'!K2, 'STUDY DETAILS'!C11='DATA-DO NOT DELETE'!L9,'STUDY DETAILS'!C13='DATA-DO NOT DELETE'!L13), 'DATA-DO NOT DELETE'!L2, 0)+IF(AND('STUDY DETAILS'!C10='DATA-DO NOT DELETE'!K2, 'STUDY DETAILS'!C11='DATA-DO NOT DELETE'!L8,'STUDY DETAILS'!C13='DATA-DO NOT DELETE'!L13), 'DATA-DO NOT DELETE'!L4, 0)+IF(AND('STUDY DETAILS'!C10='DATA-DO NOT DELETE'!K2, 'STUDY DETAILS'!C11='DATA-DO NOT DELETE'!L9,'STUDY DETAILS'!C13='DATA-DO NOT DELETE'!L12), 'DATA-DO NOT DELETE'!L5, 0)+IF(AND('STUDY DETAILS'!C10='DATA-DO NOT DELETE'!K2, 'STUDY DETAILS'!C11='DATA-DO NOT DELETE'!L8,'STUDY DETAILS'!C13='DATA-DO NOT DELETE'!L12), 'DATA-DO NOT DELETE'!L5, 0)+IF(AND('STUDY DETAILS'!C10='DATA-DO NOT DELETE'!K3, 'STUDY DETAILS'!C11='DATA-DO NOT DELETE'!L9), 'DATA-DO NOT DELETE'!L3, 0)+IF(AND('STUDY DETAILS'!C10='DATA-DO NOT DELETE'!K3, 'STUDY DETAILS'!C11='DATA-DO NOT DELETE'!L8), 'DATA-DO NOT DELETE'!L3, 0) -> 0
B76: Cost per Participant | D76: =AA71 -> 0
B77: Number of Participants | D77: 1
B78: TOTAL PARTICIPANT COSTS | D78: =D76*D77 -> 0
B80: CTU NON-INDUSTRY SUBSIDY | D80: =IF('STUDY DETAILS'!C10='DATA-DO NOT DELETE'!K3,-AA59*0.25*D77,AA59*0) -> 0
B82: TOTAL STUDY COSTS | D82: =D78+D80 -> 0

Sheet DATA-DO NOT DELETE (hidden)
A1: Qty | C1: Frequency | D1: Price | K1: Type of Study | N1: Frequency | O1: Price | S1: Department Name
A2: 1 | B2: 1 | C2: 0 | D2: 0 | E2: 0 | F2: 0 | K2: Industry | L2: 2350 | N2: 0 | O2: 0 | P2: 0 | S2: Anesthesiology
A3: 2 | B3: 2 | C3: 30 | D3: 36 | E3: =ROUND(D3,0) -> 36 | F3: 54 | G3: =ROUND(F3,0) -> 54 | H3: 58 | I3: =ROUND(H3,0) -> 58 | K3: Non-Industry | L3: 0 | N3: 30 | O3: 72 | P3: =ROUND(O3,0) -> 72 | S3: Biochemistry & Molecular Medicine
A4: 3 | B4: 3 | C4: 60 | D4: =$D$3*A3 -> 72 | E4: =ROUND(D4,0) -> 72 | F4: =$F$3*A3 -> 108 | G4: =ROUND(F4,0) -> 108 | H4: =$H$3*A3 -> 116 | I4: =ROUND(H4,0) -> 116 | K4: Industry Lab Only | L4: 250 | N4: 60 | O4: =$O$3*A3 -> 144 | P4: =ROUND(O4,0) -> 144 | S4: Cancer Center
A5: 4 | B5: 4 | C5: 90 | D5: =$D$3*A4 -> 108 | E5: 108 | F5: =$F$3*A4 -> 162 | G5: 162 | H5: =$H$3*A4 -> 174 | I5: 174 | K5: Industry Amend | L5: 0 | N5: 90 | O5: =$O$3*A4 -> 216 | P5: 216 | S5: Cardiothoracic Surgery
A6: 5 | B6: 5 | C6: 120 | D6: 144 | E6: 144 | F6: =$F$3*A5 -> 216 | G6: 216 | H6: =$H$3*A5 -> 232 | I6: 232 | N6: 120 | O6: =$O$3*A5 -> 288 | P6: 288 | S6: Cell & Neurobiology
A7: 6 | B7: 6 | C7: 150 | D7: 180 | E7: 180 | F7: 270 | G7: 270 | H7: =$H$3*A6 -> 290 | I7: 290 | N7: 150 | O7: 360 | P7: 360 | S7: Center for Genetic Epidemiology
A8: 7 | B8: 7 | C8: 180 | D8: 216 | E8: 216 | F8: 324 | G8: 324 | H8: =$H$3*A7 -> 348 | I8: 348 | K8: Lab Only: | L8: Yes | N8: 180 | O8: 432 | P8: 432 | S8: Center for Stem Cell and Regenerative Medicine
A9: 8 | B9: 8 | C9: 210 | D9: 252 | E9: 252 | F9: 378 | G9: 378 | H9: 406 | I9: 406 | K9: Lab Only: | L9: No | N9: 210 | O9: 504 | P9: 504 | S9: Colorectal Surgery
A10: 9 | B10: 9 | C10: 240 | D10: 288 | E10: 288 | F10: 432 | G10: 432 | H10: 464 | I10: 464 | N10: 240 | O10: 576 | P10: 576 | S10: Dentistry
A11: 10 | B11: 10 | C11: 270 | D11: 324 | E11: 324 | F11: 486 | G11: 486 | H11: 522 | I11: 522 | N11: 270 | O11: 648 | P11: 648 | S11: Dermatology
A12: 11 | B12: 11 | C12: 300 | D12: 360 | E12: 360 | F12: 540 | G12: 540 | H12: 580 | I12: 580 | K12: Amendment | L12: Yes | N12: 300 | O12: 720 | P12: 720 | S12: Dornsife
A13: 12 | B13: 12 | C13: 330 | D13: 396 | E13: 396 | F13: 594 | G13: 594 | H13: 638 | I13: 638 | K13: Amendment | L13: No | N13: 330 | O13: 792 | P13: 792 | S13: Emergency Medicine
A14: 13 | B14: 13 | C14: 360 | D14: 432 | E14: 432 | F14: 648 | G14: 648 | H14: 696 | I14: 696 | N14: 360 | O14: 864 | P14: 864 | S14: Emergency Medicine - Global Emergency Medicine
A15: 14 | B15: 14 | C15: 390 | D15: 468 | E15: 468 | F15: 702 | G15: 702 | H15: 754 | I15: 754 | N15: 390 | O15: 936 | P15: 936 | S15: Emergency Medicine - Pediatric Emergency Medicine
A16: 15 | B16: 15 | C16: 420 | D16: =$D$3*A15 -> 504 | E16: 504 | F16: 756 | G16: 756 | H16: 812 | I16: 812 | N16: 420 | O16: 1008 | P16: 1008 | S16: Emergency Medicine - Toxicology
A17: 16 | B17: 16 | C17: 450 | D17: 540 | E17: 540 | F17: 810 | G17: 810 | H17: 870 | I17: 870 | N17: 450 | O17: 1080 | P17: 1080 | S17: Family Medicine
A18: 17 | B18: 17 | C18: 480 | D18: 576 | E18: 576 | F18: 864 | G18: 864 | H18: 928 | I18: 928 | N18: 480 | O18: 1152 | P18: 1152 | S18: Gerontology
A19: 18 | B19: 18 | C19: 510 | D19: 612 | E19: 612 | F19: 918 | G19: 918 | H19: 986 | I19: 986 | N19: 510 | O19: 1224 | P19: 1224 | S19: Institute for Genetic Medicine
A20: 19 | B20: 19 | C20: 540 | D20: 648 | E20: 648 | F20: 972 | G20: 972 | H20: 1044 | I20: 1044 | N20: 540 | O20: 1296 | P20: 1296 | S20: Integrative Anatomical Sciences
A21: 20 | B21: 20 | C21: 570 | D21: 684 | E21: 684 | F21: 1026 | G21: 1026 | H21: 1102 | I21: 1102 | N21: 570 | O21: 1368 | P21: 1368 | S21: Medicine - Cardiovascular Medicine
A22: 21 | B22: 21 | C22: 600 | D22: 720 | E22: 720 | F22: 1080 | G22: 1080 | H22: 1160 | I22: 1160 | N22: 600 | O22: 1440 | P22: 1440 | S22: Medicine - Endocrinology & Diabetes
B23: 22 | S23: Medicine - Gastrointestinal and Liver Diseases
B24: 23 | S24: Medicine - Geriatric, Hospital, Palliative and General Internal Medicine
B25: 24 | S25: Medicine - Hematology
B26: 25 | S26: Medicine - Infectious Diseases
B27: 26 | S27: Medicine - Nephrology and Hypertension
B28: 27 | S28: Medicine - Oncology
B29: 28 | S29: Medicine - Pulmonary, Critical Care and Sleep Medicine
B30: 29 | S30: Medicine - Rheumatology
B31: 30 | S31: Molecular Microbiology and Immunology
B32: 31 | S32: Neuroimaging and Informatics Insitute
B33: 32 | S33: Neurological Surgery
B34: 33 | S34: Neurology
B35: 34 | S35: Obstetrics/Gynecology
B36: 35 | S36: Occupational Therapy
B37: 36 | S37: Ophthalmology
B38: 37 | S38: Orthopaedics
B39: 38 | S39: Otolaryngology
B40: 39 | S40: Pathology
B41: 40 | S41: Pediatrics - CHLA
B42: 41 | S42: Pediatrics - LAC
B43: 42 | S43: Pediatrics - LAC - MCA
B44: 43 | S44: Pharmacy
B45: 44 | S45: Physical Therapy
B46: 45 | S46: Physiology and Biophysics
B47: 46 | S47: Preventive Medicine - Bioinformatics
B48: 47 | S48: Preventive Medicine - Biostatistics
B49: 48 | S49: Preventive Medicine - Cancer Epidemiology & Genetics
B50: 49 | S50: Preventive Medicine - Disease Prevention & Global Health
B51: 50 | S51: Preventive Medicine - Environmental Health
S52: Preventive Medicine - Health Behavior Research
S53: Psychiatry
S54: Radiation Oncology
S55: Radiology
S56: Social Work
S57: Surgery
S58: Urology
S59: Zilkha Neurogenetic Institute
S60: Other
